[Event "January 2 Late 2024"]
[Site "https://www.chess.com"]
[Date "2024.01.02"]
[Round "8"]
[White "Pakleza, Zbigniew"]
[Black "Poltorak, Sebastian"]
[Result "1-0"]
[Board "36"]
[TimeControl "180+1"]
[WhiteFideId "1119290"]
[BlackFideId "1199498"]
[WhiteElo "2814"]
[BlackElo "2628"]
[WhiteTeam "POL"]
[BlackTeam "POL"]
[WhiteClock "0:00:06"]
[BlackClock "0:00:00"]

1. d4 {[%clk 0:03:00]}  Nf6 {[%clk 0:02:58]} 2. Nf3 {[%clk 0:03:01]}  b6 {[%clk 0:02:54]} 3. Bf4 {[%clk 0:03:01]}  Bb7 {[%clk 0:02:55]} 4. e3 {[%clk 0:03:02]}  e6 {[%clk 0:02:55]} 5. Nbd2 {[%clk 0:03:01]}  d5 {[%clk 0:02:54]} 6. Bd3 {[%clk 0:03:01]}  Bd6 {[%clk 0:02:55]} 7. Bg3 {[%clk 0:03:01]}  Bxg3 {[%clk 0:02:50]} 8. hxg3 {[%clk 0:03:01]}  Nbd7 {[%clk 0:02:51]} 9. c3 {[%clk 0:02:58]}  h6 {[%clk 0:02:51]} 10. Qc2 {[%clk 0:02:54]}  Qe7 {[%clk 0:02:51]} 11. O-O-O {[%clk 0:02:53]}  O-O-O {[%clk 0:02:51]} 12. e4 {[%clk 0:02:44]}  dxe4 {[%clk 0:02:49]} 13. Nxe4 {[%clk 0:02:44]}  Nxe4 {[%clk 0:02:47]} 14. Bxe4 {[%clk 0:02:45]}  Qd6 {[%clk 0:02:31]} 15. Rhe1 {[%clk 0:02:15]}  Rhe8 {[%clk 0:02:29]} 16. Kb1 {[%clk 0:02:12]}  Bxe4 {[%clk 0:02:19]} 17. Qxe4 {[%clk 0:02:12]}  Qd5 {[%clk 0:02:19]} 18. Qg4 {[%clk 0:01:59]}  Qf5+ {[%clk 0:02:15]} 19. Qxf5 {[%clk 0:01:59]}  exf5 {[%clk 0:02:16]} 20. Kc2 {[%clk 0:01:53]}  c6 {[%clk 0:02:08]} 21. a4 {[%clk 0:01:44]}  Kc7 {[%clk 0:02:06]} 22. b4 {[%clk 0:01:35]}  Nf6 {[%clk 0:01:50]} 23. Ne5 {[%clk 0:01:31]}  Re7 {[%clk 0:01:47]} 24. b5 {[%clk 0:01:18]}  Rde8 {[%clk 0:00:53]} 25. bxc6 {[%clk 0:01:07]}  Nd5 {[%clk 0:00:34]} 26. Rh1 {[%clk 0:00:34]}  f6 {[%clk 0:00:34]} 27. Nd3 {[%clk 0:00:33]}  Re2+ {[%clk 0:00:31]} 28. Rd2 {[%clk 0:00:33]}  Kxc6 {[%clk 0:00:30]} 29. c4 {[%clk 0:00:33]}  Rxd2+ {[%clk 0:00:23]} 30. Kxd2 {[%clk 0:00:34]}  Nc7 {[%clk 0:00:23]} 31. Re1 {[%clk 0:00:20]}  Rxe1 {[%clk 0:00:20]} 32. Nxe1 {[%clk 0:00:21]}  Kd6 {[%clk 0:00:18]} 33. Nc2 {[%clk 0:00:18]}  Ne6 {[%clk 0:00:16]} 34. Kc3 {[%clk 0:00:15]}  h5 {[%clk 0:00:10]} 35. Ne3 {[%clk 0:00:12]}  g6 {[%clk 0:00:10]} 36. Nd5 {[%clk 0:00:13]}  Ng5 {[%clk 0:00:04]} 37. f3 {[%clk 0:00:09]}  Ke6 {[%clk 0:00:04]} 38. Nc7+ {[%clk 0:00:08]}  Kd7 {[%clk 0:00:03]} 39. Nd5 {[%clk 0:00:09]}  Ke6 {[%clk 0:00:04]} 40. Kb4 {[%clk 0:00:09]}  Nf7 {[%clk 0:00:03]} 41. Nc7+ {[%clk 0:00:07]}  Kd7 {[%clk 0:00:03]} 42. Nd5 {[%clk 0:00:07]}  Ke6 {[%clk 0:00:04]} 43. Nf4+ {[%clk 0:00:07]}  Kd6 {[%clk 0:00:03]} 44. Nxg6 {[%clk 0:00:07]}  Ng5 {[%clk 0:00:01]} 45. Nh4 {[%clk 0:00:06]}  Ne6 {[%clk 0:00:01]} 46. Nxf5+ {[%clk 0:00:06]}  Kd7 {[%clk 0:00:02]} 47. d5 {[%clk 0:00:04]}  Nc5 {[%clk 0:00:02]} 48. a5 {[%clk 0:00:05]}  Nd3+ {[%clk 0:00:01]} 49. Kc3 {[%clk 0:00:05]}  Ne1 {[%clk 0:00:01]} 50. axb6 {[%clk 0:00:06]}  axb6 {[%clk 0:00:02]} 51. Ne3 {[%clk 0:00:06]}  Kd6 {[%clk 0:00:00]} 52. Kd2 {[%clk 0:00:06]} 1-0

[Event "January 2 Late 2024"]
[Site "https://www.chess.com"]
[Date "2024.01.02"]
[Round "8"]
[White "Lysyj, Igor"]
[Black "Gulamali, Kazim"]
[Result "1-0"]
[Board "37"]
[TimeControl "180+1"]
[WhiteFideId "4150120"]
[BlackFideId "2024764"]
[WhiteElo "2814"]
[BlackElo "2579"]
[WhiteTeam "FID"]
[BlackTeam "USA"]
[WhiteClock "0:01:46"]
[BlackClock "0:00:29"]

1. d4 {[%clk 0:02:59]}  Nf6 {[%clk 0:02:59]} 2. c4 {[%clk 0:02:59]}  e6 {[%clk 0:02:59]} 3. Nf3 {[%clk 0:02:59]}  d5 {[%clk 0:02:54]} 4. g3 {[%clk 0:02:58]}  Bb4+ {[%clk 0:02:50]} 5. Bd2 {[%clk 0:02:58]}  Bxd2+ {[%clk 0:02:50]} 6. Nbxd2 {[%clk 0:02:57]}  O-O {[%clk 0:02:51]} 7. Bg2 {[%clk 0:02:57]}  c6 {[%clk 0:02:45]} 8. O-O {[%clk 0:02:55]}  Nbd7 {[%clk 0:02:44]} 9. Qc2 {[%clk 0:02:50]}  b6 {[%clk 0:02:43]} 10. e4 {[%clk 0:02:50]}  Bb7 {[%clk 0:02:40]} 11. cxd5 {[%clk 0:02:46]}  cxd5 {[%clk 0:02:28]} 12. e5 {[%clk 0:02:46]}  Rc8 {[%clk 0:02:29]} 13. Qa4 {[%clk 0:02:45]}  Ne8 {[%clk 0:02:16]} 14. Qxa7 {[%clk 0:02:29]}  Bc6 {[%clk 0:01:58]} 15. Qa3 {[%clk 0:02:29]}  Nc7 {[%clk 0:01:45]} 16. Rfc1 {[%clk 0:02:27]}  Bb5 {[%clk 0:01:39]} 17. Qe3 {[%clk 0:02:22]}  Na6 {[%clk 0:01:34]} 18. a3 {[%clk 0:02:18]}  Rxc1+ {[%clk 0:01:18]} 19. Rxc1 {[%clk 0:02:17]}  Qb8 {[%clk 0:01:18]} 20. Qb3 {[%clk 0:02:12]}  Be2 {[%clk 0:01:17]} 21. Qe3 {[%clk 0:02:07]}  Bxf3 {[%clk 0:01:17]} 22. Nxf3 {[%clk 0:02:07]}  Rc8 {[%clk 0:01:09]} 23. Bf1 {[%clk 0:02:06]}  Nc7 {[%clk 0:01:05]} 24. Rc6 {[%clk 0:02:01]}  Qb7 {[%clk 0:00:36]} 25. Qc1 {[%clk 0:01:53]}  Nb8 {[%clk 0:00:34]} 26. Rc3 {[%clk 0:01:51]}  h6 {[%clk 0:00:33]} 27. h4 {[%clk 0:01:50]}  Kf8 {[%clk 0:00:33]} 28. Qc2 {[%clk 0:01:48]}  Ke8 {[%clk 0:00:29]} 29. Qh7 {[%clk 0:01:46]} 1-0

[Event "January 2 Late 2024"]
[Site "https://www.chess.com"]
[Date "2024.01.02"]
[Round "8"]
[White "Pasti, Aron"]
[Black "Krzyzanowski, Marcin"]
[Result "0-1"]
[Board "38"]
[TimeControl "180+1"]
[WhiteFideId "785857"]
[BlackFideId "1132199"]
[WhiteElo "2550"]
[BlackElo "2788"]
[WhiteTeam "HUN"]
[BlackTeam "POL"]
[WhiteClock "0:00:00"]
[BlackClock "0:00:03"]

1. e4 {[%clk 0:03:00]}  c6 {[%clk 0:03:00]} 2. d4 {[%clk 0:03:00]}  d5 {[%clk 0:03:00]} 3. Nc3 {[%clk 0:03:00]}  dxe4 {[%clk 0:03:00]} 4. Nxe4 {[%clk 0:03:01]}  Nf6 {[%clk 0:03:01]} 5. Nxf6+ {[%clk 0:03:01]}  exf6 {[%clk 0:03:02]} 6. c3 {[%clk 0:03:01]}  Bd6 {[%clk 0:03:02]} 7. Bd3 {[%clk 0:03:02]}  O-O {[%clk 0:03:02]} 8. Ne2 {[%clk 0:03:03]}  Re8 {[%clk 0:03:01]} 9. O-O {[%clk 0:03:03]}  Na6 {[%clk 0:02:56]} 10. Ng3 {[%clk 0:03:02]}  c5 {[%clk 0:02:54]} 11. Be3 {[%clk 0:02:56]}  cxd4 {[%clk 0:02:54]} 12. Bxd4 {[%clk 0:02:57]}  Nc5 {[%clk 0:02:52]} 13. Bxc5 {[%clk 0:02:53]}  Bxc5 {[%clk 0:02:47]} 14. Bxh7+ {[%clk 0:02:53]}  Kxh7 {[%clk 0:02:46]} 15. Qh5+ {[%clk 0:02:53]}  Kg8 {[%clk 0:02:46]} 16. Qxc5 {[%clk 0:02:54]}  Bg4 {[%clk 0:02:41]} 17. h3 {[%clk 0:02:51]}  Be2 {[%clk 0:02:33]} 18. Rfe1 {[%clk 0:02:46]}  Qd2 {[%clk 0:02:32]} 19. Qd4 {[%clk 0:02:28]}  Qxb2 {[%clk 0:02:15]} 20. Rab1 {[%clk 0:02:20]}  Qxa2 {[%clk 0:02:14]} 21. Rxb7 {[%clk 0:02:16]}  a5 {[%clk 0:02:09]} 22. Nf5 {[%clk 0:02:11]}  Qc4 {[%clk 0:01:41]} 23. Ne7+ {[%clk 0:01:14]}  Kf8 {[%clk 0:00:59]} 24. Ng6+ {[%clk 0:01:07]}  Kg8 {[%clk 0:00:47]} 25. Ne7+ {[%clk 0:01:07]}  Kf8 {[%clk 0:00:47]} 26. Qd7 {[%clk 0:00:39]}  Rad8 {[%clk 0:00:31]} 27. Ng6+ {[%clk 0:00:32]}  Kg8 {[%clk 0:00:32]} 28. Ne7+ {[%clk 0:00:33]}  Kf8 {[%clk 0:00:25]} 29. Ng6+ {[%clk 0:00:26]}  Kg8 {[%clk 0:00:25]} 30. Ne7+ {[%clk 0:00:26]}  Kh8 {[%clk 0:00:12]} 31. Qf5 {[%clk 0:00:25]}  Bd3 {[%clk 0:00:12]} 32. Qh5+ {[%clk 0:00:23]}  Bh7 {[%clk 0:00:13]} 33. Rb5 {[%clk 0:00:22]}  Qd3 {[%clk 0:00:07]} 34. Rxa5 {[%clk 0:00:20]}  f5 {[%clk 0:00:04]} 35. Rxf5 {[%clk 0:00:16]}  Rxe7 {[%clk 0:00:03]} 36. Rxe7 {[%clk 0:00:06]}  Qb1+ {[%clk 0:00:03]} 37. Kh2 {[%clk 0:00:05]}  Qxf5 {[%clk 0:00:04]} 38. Qh4 {[%clk 0:00:06]}  Rf8 {[%clk 0:00:02]} 39. Re3 {[%clk 0:00:06]}  Qg6 {[%clk 0:00:02]} 40. Rg3 {[%clk 0:00:06]}  Qd6 {[%clk 0:00:03]} 41. Qg5 {[%clk 0:00:05]}  Bg6 {[%clk 0:00:03]} 42. h4 {[%clk 0:00:05]}  Qf6 {[%clk 0:00:03]} 43. Qg4 {[%clk 0:00:05]}  Qf5 {[%clk 0:00:03]} 44. Qb4 {[%clk 0:00:05]}  Re8 {[%clk 0:00:03]} 45. Qd4 {[%clk 0:00:03]}  Re4 {[%clk 0:00:03]} 46. Qd8+ {[%clk 0:00:02]}  Kh7 {[%clk 0:00:04]} 47. Rg5 {[%clk 0:00:01]}  Qxf2 {[%clk 0:00:04]} 48. Rg3 {[%clk 0:00:00]}  Qf4 {[%clk 0:00:03]} 0-1

[Event "January 2 Late 2024"]
[Site "https://www.chess.com"]
[Date "2024.01.02"]
[Round "8"]
[White "Kramnik, Vladimir"]
[Black "Ferreira, Vitor Hugo Vieira"]
[Result "1-0"]
[Board "39"]
[TimeControl "180+1"]
[WhiteFideId "4101588"]
[BlackFideId "2119765"]
[WhiteElo "2960"]
[BlackElo "2556"]
[WhiteTeam "RUS"]
[BlackTeam "BRA"]
[WhiteClock "0:00:48"]
[BlackClock "0:00:16"]

1. e4 {[%clk 0:03:00]}  c5 {[%clk 0:02:46]} 2. Nf3 {[%clk 0:03:00]}  d6 {[%clk 0:02:45]} 3. d4 {[%clk 0:03:00]}  cxd4 {[%clk 0:02:46]} 4. Nxd4 {[%clk 0:03:00]}  Nf6 {[%clk 0:02:45]} 5. Nc3 {[%clk 0:03:00]}  a6 {[%clk 0:02:45]} 6. Bc4 {[%clk 0:02:59]}  e6 {[%clk 0:02:44]} 7. Be3 {[%clk 0:02:59]}  Be7 {[%clk 0:02:44]} 8. Bb3 {[%clk 0:02:54]}  O-O {[%clk 0:02:41]} 9. g4 {[%clk 0:02:54]}  Nc6 {[%clk 0:02:40]} 10. g5 {[%clk 0:02:49]}  Nd7 {[%clk 0:02:38]} 11. Rg1 {[%clk 0:02:45]}  Nxd4 {[%clk 0:02:36]} 12. Qxd4 {[%clk 0:02:41]}  Nc5 {[%clk 0:02:35]} 13. O-O-O {[%clk 0:02:36]}  Nxb3+ {[%clk 0:02:35]} 14. axb3 {[%clk 0:02:34]}  Bd7 {[%clk 0:02:34]} 15. f4 {[%clk 0:02:31]}  Re8 {[%clk 0:02:29]} 16. Kb1 {[%clk 0:02:30]}  Bc6 {[%clk 0:02:25]} 17. f5 {[%clk 0:02:28]}  Bf8 {[%clk 0:02:24]} 18. h4 {[%clk 0:02:20]}  b5 {[%clk 0:02:20]} 19. h5 {[%clk 0:02:11]}  exf5 {[%clk 0:02:19]} 20. g6 {[%clk 0:02:02]}  fxg6 {[%clk 0:01:49]} 21. hxg6 {[%clk 0:02:01]}  h6 {[%clk 0:01:45]} 22. exf5 {[%clk 0:01:56]}  Re5 {[%clk 0:01:30]} 23. Qd3 {[%clk 0:01:40]}  b4 {[%clk 0:01:11]} 24. Bd4 {[%clk 0:01:32]}  Bb5 {[%clk 0:00:28]} 25. Nxb5 {[%clk 0:01:26]}  Rxb5 {[%clk 0:00:29]} 26. f6 {[%clk 0:01:22]}  gxf6 {[%clk 0:00:27]} 27. Qc4+ {[%clk 0:01:07]}  d5 {[%clk 0:00:27]} 28. Qe2 {[%clk 0:00:56]}  Bg7 {[%clk 0:00:26]} 29. Qe6+ {[%clk 0:00:51]}  Kh8 {[%clk 0:00:26]} 30. Rh1 {[%clk 0:00:51]}  Qe8 {[%clk 0:00:27]} 31. Rxh6+ {[%clk 0:00:47]}  Bxh6 {[%clk 0:00:18]} 32. Bxf6+ {[%clk 0:00:47]}  Bg7 {[%clk 0:00:16]} 33. Rh1# {[%clk 0:00:48]} 1-0

[Event "January 2 Late 2024"]
[Site "https://www.chess.com"]
[Date "2024.01.02"]
[Round "8"]
[White "Santos Latasa, Jaime"]
[Black "CamillaEffect"]
[Result "1-0"]
[Board "41"]
[TimeControl "180+1"]
[WhiteFideId "2293307"]
[WhiteElo "2907"]
[BlackElo "2649"]
[WhiteTeam "ESP"]
[WhiteClock "0:01:46"]
[BlackClock "0:00:07"]

1. Nf3 {[%clk 0:03:00]}  d5 {[%clk 0:02:58]} 2. e3 {[%clk 0:03:00]}  c6 {[%clk 0:02:58]} 3. d4 {[%clk 0:03:00]}  Nf6 {[%clk 0:02:58]} 4. c4 {[%clk 0:03:01]}  Bg4 {[%clk 0:02:57]} 5. h3 {[%clk 0:03:01]}  Bxf3 {[%clk 0:02:57]} 6. Qxf3 {[%clk 0:03:02]}  e6 {[%clk 0:02:56]} 7. Nc3 {[%clk 0:03:02]}  Nbd7 {[%clk 0:02:52]} 8. Bd2 {[%clk 0:03:02]}  Bd6 {[%clk 0:02:49]} 9. cxd5 {[%clk 0:03:02]}  cxd5 {[%clk 0:02:45]} 10. Bd3 {[%clk 0:03:01]}  a6 {[%clk 0:02:43]} 11. g4 {[%clk 0:02:59]}  O-O {[%clk 0:02:31]} 12. g5 {[%clk 0:02:58]}  Ne8 {[%clk 0:02:31]} 13. h4 {[%clk 0:02:58]}  b5 {[%clk 0:02:29]} 14. O-O-O {[%clk 0:02:47]}  Rc8 {[%clk 0:02:21]} 15. Kb1 {[%clk 0:02:47]}  Nb6 {[%clk 0:02:22]} 16. e4 {[%clk 0:02:44]}  b4 {[%clk 0:01:51]} 17. Ne2 {[%clk 0:02:38]}  Nc7 {[%clk 0:01:25]} 18. Rc1 {[%clk 0:02:29]}  a5 {[%clk 0:01:19]} 19. h5 {[%clk 0:02:27]}  Qd7 {[%clk 0:01:04]} 20. e5 {[%clk 0:02:14]}  Be7 {[%clk 0:01:02]} 21. Qh3 {[%clk 0:02:15]}  Nc4 {[%clk 0:00:58]} 22. Bf4 {[%clk 0:02:00]}  Nb5 {[%clk 0:00:59]} 23. g6 {[%clk 0:01:59]}  f5 {[%clk 0:00:32]} 24. h6 {[%clk 0:01:54]}  Nba3+ {[%clk 0:00:13]} 25. Ka1 {[%clk 0:01:52]}  Nxb2 {[%clk 0:00:07]} 26. hxg7 {[%clk 0:01:46]} 1-0

[Event "January 2 Late 2024"]
[Site "https://www.chess.com"]
[Date "2024.01.02"]
[Round "8"]
[White "Espinoza Villanueva, Rodrigo"]
[Black "Durarbayli, Vasif"]
[Result "0-1"]
[Board "44"]
[TimeControl "180+1"]
[WhiteFideId "5140188"]
[BlackFideId "13402935"]
[WhiteElo "2641"]
[BlackElo "2805"]
[WhiteTeam "MEX"]
[BlackTeam "AZE"]
[WhiteClock "0:00:05"]
[BlackClock "0:00:20"]

1. Nf3 {[%clk 0:02:54]}  c5 {[%clk 0:02:58]} 2. g3 {[%clk 0:02:52]}  Nc6 {[%clk 0:02:58]} 3. Bg2 {[%clk 0:02:53]}  g6 {[%clk 0:02:58]} 4. O-O {[%clk 0:02:54]}  Bg7 {[%clk 0:02:59]} 5. d3 {[%clk 0:02:54]}  d5 {[%clk 0:02:59]} 6. Nc3 {[%clk 0:02:53]}  e6 {[%clk 0:02:51]} 7. Na4 {[%clk 0:02:42]}  b6 {[%clk 0:02:47]} 8. c4 {[%clk 0:02:42]}  Nge7 {[%clk 0:02:47]} 9. Rb1 {[%clk 0:02:38]}  O-O {[%clk 0:02:46]} 10. Bf4 {[%clk 0:02:34]}  h6 {[%clk 0:02:35]} 11. a3 {[%clk 0:02:32]}  e5 {[%clk 0:02:30]} 12. Bd2 {[%clk 0:02:24]}  e4 {[%clk 0:02:20]} 13. Ne1 {[%clk 0:02:07]}  exd3 {[%clk 0:02:11]} 14. exd3 {[%clk 0:02:08]}  dxc4 {[%clk 0:02:06]} 15. dxc4 {[%clk 0:02:09]}  Bf5 {[%clk 0:02:06]} 16. Rc1 {[%clk 0:01:42]}  Qd7 {[%clk 0:01:55]} 17. Bc3 {[%clk 0:01:39]}  Qxd1 {[%clk 0:01:44]} 18. Rxd1 {[%clk 0:01:40]}  Rad8 {[%clk 0:01:42]} 19. Rxd8 {[%clk 0:01:34]}  Rxd8 {[%clk 0:01:43]} 20. Bxg7 {[%clk 0:01:09]}  Kxg7 {[%clk 0:01:44]} 21. Nf3 {[%clk 0:01:09]}  Na5 {[%clk 0:01:38]} 22. Rc1 {[%clk 0:01:03]}  Nb3 {[%clk 0:01:35]} 23. Re1 {[%clk 0:01:00]}  Nc6 {[%clk 0:01:34]} 24. Nc3 {[%clk 0:00:59]}  Be6 {[%clk 0:01:22]} 25. Bf1 {[%clk 0:00:57]}  Nba5 {[%clk 0:01:13]} 26. Re4 {[%clk 0:00:47]}  Nd4 {[%clk 0:01:09]} 27. Nd2 {[%clk 0:00:38]}  f5 {[%clk 0:00:41]} 28. Re3 {[%clk 0:00:34]}  Kf6 {[%clk 0:00:40]} 29. f4 {[%clk 0:00:30]}  Ndb3 {[%clk 0:00:20]} 30. Nxb3 {[%clk 0:00:25]}  Nxb3 {[%clk 0:00:21]} 31. Re5 {[%clk 0:00:24]}  Rd2 {[%clk 0:00:18]} 32. Re2 {[%clk 0:00:16]}  Bxc4 {[%clk 0:00:16]} 33. Rxd2 {[%clk 0:00:14]}  Nxd2 {[%clk 0:00:17]} 34. Bxc4 {[%clk 0:00:12]}  Nxc4 {[%clk 0:00:18]} 35. Nd5+ {[%clk 0:00:13]}  Ke6 {[%clk 0:00:16]} 36. Nc7+ {[%clk 0:00:12]}  Kd7 {[%clk 0:00:17]} 37. Nb5 {[%clk 0:00:11]}  a6 {[%clk 0:00:17]} 38. Nc3 {[%clk 0:00:10]}  Nxb2 {[%clk 0:00:18]} 39. Nd5 {[%clk 0:00:11]}  Nc4 {[%clk 0:00:18]} 40. a4 {[%clk 0:00:10]}  Kd6 {[%clk 0:00:18]} 41. Nc3 {[%clk 0:00:09]}  Kc6 {[%clk 0:00:19]} 42. Kf2 {[%clk 0:00:08]}  b5 {[%clk 0:00:19]} 43. axb5+ {[%clk 0:00:09]}  axb5 {[%clk 0:00:20]} 44. Ke2 {[%clk 0:00:10]}  b4 {[%clk 0:00:20]} 45. Na4 {[%clk 0:00:05]}  Kb5 {[%clk 0:00:20]} 0-1

[Event "January 2 Late 2024"]
[Site "https://www.chess.com"]
[Date "2024.01.02"]
[Round "8"]
[White "Timmermans, Mark"]
[Black "Luo, Terry"]
[Result "1-0"]
[Board "46"]
[TimeControl "180+1"]
[WhiteFideId "1026399"]
[BlackFideId "30931045"]
[WhiteElo "2769"]
[BlackElo "2622"]
[WhiteTeam "NED"]
[BlackTeam "USA"]
[WhiteClock "0:00:07"]
[BlackClock "0:00:06"]

1. b4 {[%clk 0:02:59]}  a5 {[%clk 0:02:54]} 2. b5 {[%clk 0:02:58]}  b6 {[%clk 0:02:53]} 3. Bb2 {[%clk 0:02:56]}  Bb7 {[%clk 0:02:53]} 4. e3 {[%clk 0:02:53]}  Nf6 {[%clk 0:02:52]} 5. c4 {[%clk 0:02:50]}  g6 {[%clk 0:02:51]} 6. a4 {[%clk 0:02:49]}  Bg7 {[%clk 0:02:51]} 7. Nf3 {[%clk 0:02:47]}  O-O {[%clk 0:02:52]} 8. Be2 {[%clk 0:02:46]}  d6 {[%clk 0:02:53]} 9. O-O {[%clk 0:02:45]}  Nbd7 {[%clk 0:02:53]} 10. d4 {[%clk 0:02:44]}  e5 {[%clk 0:02:53]} 11. Nc3 {[%clk 0:02:44]}  Ne4 {[%clk 0:02:51]} 12. Nxe4 {[%clk 0:02:40]}  Bxe4 {[%clk 0:02:52]} 13. Nd2 {[%clk 0:02:40]}  Bb7 {[%clk 0:02:53]} 14. Bf3 {[%clk 0:02:39]}  Bxf3 {[%clk 0:02:53]} 15. Nxf3 {[%clk 0:02:34]}  exd4 {[%clk 0:02:53]} 16. Nxd4 {[%clk 0:02:28]}  Nc5 {[%clk 0:02:52]} 17. Nc6 {[%clk 0:02:28]}  Qd7 {[%clk 0:02:52]} 18. Bxg7 {[%clk 0:02:28]}  Kxg7 {[%clk 0:02:53]} 19. Ra3 {[%clk 0:02:12]}  Rae8 {[%clk 0:02:52]} 20. Qa1+ {[%clk 0:01:50]}  Kg8 {[%clk 0:02:49]} 21. f3 {[%clk 0:01:51]}  f5 {[%clk 0:02:20]} 22. Rd1 {[%clk 0:01:42]}  Qg7 {[%clk 0:02:20]} 23. Qxg7+ {[%clk 0:01:40]}  Kxg7 {[%clk 0:02:20]} 24. Kf2 {[%clk 0:01:41]}  g5 {[%clk 0:02:13]} 25. Nd4 {[%clk 0:01:28]}  Kf6 {[%clk 0:02:08]} 26. Ne2 {[%clk 0:01:24]}  h5 {[%clk 0:02:01]} 27. Nc3 {[%clk 0:01:24]}  Kg6 {[%clk 0:01:55]} 28. Rd5 {[%clk 0:01:11]}  h4 {[%clk 0:01:42]} 29. h3 {[%clk 0:01:07]}  Rf7 {[%clk 0:01:37]} 30. Ra2 {[%clk 0:01:03]}  Rfe7 {[%clk 0:01:33]} 31. Re2 {[%clk 0:01:04]}  Nd7 {[%clk 0:01:24]} 32. Rd4 {[%clk 0:01:02]}  Nc5 {[%clk 0:01:18]} 33. Rd1 {[%clk 0:00:59]}  Rf7 {[%clk 0:01:07]} 34. Ke1 {[%clk 0:00:56]}  Rfe7 {[%clk 0:01:05]} 35. Kd2 {[%clk 0:00:56]}  Nb3+ {[%clk 0:01:03]} 36. Kc2 {[%clk 0:00:55]}  Nc5 {[%clk 0:01:03]} 37. Nd5 {[%clk 0:00:55]}  Rf7 {[%clk 0:01:02]} 38. Ra1 {[%clk 0:00:53]}  f4 {[%clk 0:00:53]} 39. e4 {[%clk 0:00:53]}  Re5 {[%clk 0:00:50]} 40. Nc3 {[%clk 0:00:53]}  Rfe7 {[%clk 0:00:47]} 41. Rd1 {[%clk 0:00:53]}  Rf7 {[%clk 0:00:47]} 42. Red2 {[%clk 0:00:53]}  Rfe7 {[%clk 0:00:47]} 43. Rd5 {[%clk 0:00:53]}  Kf7 {[%clk 0:00:43]} 44. Rxe5 {[%clk 0:00:53]}  Rxe5 {[%clk 0:00:42]} 45. Nd5 {[%clk 0:00:52]}  Nxa4 {[%clk 0:00:42]} 46. Nxc7 {[%clk 0:00:52]}  Rc5 {[%clk 0:00:41]} 47. Na8 {[%clk 0:00:38]}  Rxc4+ {[%clk 0:00:38]} 48. Kb3 {[%clk 0:00:39]}  Rb4+ {[%clk 0:00:39]} 49. Ka3 {[%clk 0:00:39]}  Nc5 {[%clk 0:00:38]} 50. Nxb6 {[%clk 0:00:38]}  Ke6 {[%clk 0:00:32]} 51. Nd5 {[%clk 0:00:36]}  Rb3+ {[%clk 0:00:26]} 52. Ka2 {[%clk 0:00:36]}  a4 {[%clk 0:00:26]} 53. b6 {[%clk 0:00:30]}  Kd7 {[%clk 0:00:22]} 54. Rd4 {[%clk 0:00:30]}  Rb5 {[%clk 0:00:17]} 55. Nc3 {[%clk 0:00:24]}  Rxb6 {[%clk 0:00:14]} 56. Rd5 {[%clk 0:00:25]}  Kc6 {[%clk 0:00:13]} 57. Rxg5 {[%clk 0:00:24]}  Rb4 {[%clk 0:00:12]} 58. Rh5 {[%clk 0:00:19]}  Rc4 {[%clk 0:00:12]} 59. Nd5 {[%clk 0:00:16]}  Rc2+ {[%clk 0:00:12]} 60. Ka3 {[%clk 0:00:16]}  Kb5 {[%clk 0:00:11]} 61. Nxf4 {[%clk 0:00:13]}  Rc3+ {[%clk 0:00:10]} 62. Kb2 {[%clk 0:00:13]}  Kc4 {[%clk 0:00:10]} 63. Rd5 {[%clk 0:00:09]}  Re3 {[%clk 0:00:09]} 64. Rxd6 {[%clk 0:00:08]}  a3+ {[%clk 0:00:08]} 65. Ka2 {[%clk 0:00:08]}  Kb4 {[%clk 0:00:06]} 66. Nd5+ {[%clk 0:00:07]} 1-0

[Event "January 2 Late 2024"]
[Site "https://www.chess.com"]
[Date "2024.01.02"]
[Round "8"]
[White "Lund, Gunnar"]
[Black "Makridis, Dimitrios"]
[Result "1/2-1/2"]
[Board "49"]
[TimeControl "180+1"]
[WhiteFideId "1520814"]
[BlackFideId "25864475"]
[WhiteElo "2588"]
[BlackElo "2717"]
[WhiteTeam "NOR"]
[BlackTeam "GRE"]
[WhiteClock "0:00:10"]
[BlackClock "0:00:24"]

1. e4 {[%clk 0:03:00]}  c5 {[%clk 0:02:58]} 2. Nf3 {[%clk 0:03:00]}  d6 {[%clk 0:02:56]} 3. Bb5+ {[%clk 0:03:00]}  Nd7 {[%clk 0:02:55]} 4. O-O {[%clk 0:02:59]}  Nf6 {[%clk 0:02:54]} 5. Re1 {[%clk 0:02:59]}  a6 {[%clk 0:02:53]} 6. Bd3 {[%clk 0:03:00]}  g6 {[%clk 0:02:51]} 7. c3 {[%clk 0:03:00]}  Bg7 {[%clk 0:02:51]} 8. Bc2 {[%clk 0:03:00]}  O-O {[%clk 0:02:51]} 9. d4 {[%clk 0:03:00]}  e5 {[%clk 0:02:52]} 10. Nbd2 {[%clk 0:02:57]}  b5 {[%clk 0:02:50]} 11. Nf1 {[%clk 0:02:54]}  Bb7 {[%clk 0:02:50]} 12. Ng3 {[%clk 0:02:54]}  cxd4 {[%clk 0:02:46]} 13. cxd4 {[%clk 0:02:54]}  Rc8 {[%clk 0:02:47]} 14. Bd2 {[%clk 0:02:25]}  exd4 {[%clk 0:02:43]} 15. Nxd4 {[%clk 0:02:25]}  Re8 {[%clk 0:02:43]} 16. Bc3 {[%clk 0:02:08]}  Nc5 {[%clk 0:02:35]} 17. f3 {[%clk 0:01:31]}  Qb6 {[%clk 0:02:06]} 18. a3 {[%clk 0:01:31]}  d5 {[%clk 0:02:02]} 19. e5 {[%clk 0:01:29]}  Nfd7 {[%clk 0:02:02]} 20. f4 {[%clk 0:01:29]}  f6 {[%clk 0:01:54]} 21. exf6 {[%clk 0:01:24]}  Nxf6 {[%clk 0:01:51]} 22. Kh1 {[%clk 0:01:25]}  Nce4 {[%clk 0:01:47]} 23. Nxe4 {[%clk 0:01:25]}  dxe4 {[%clk 0:01:48]} 24. Bb3+ {[%clk 0:01:17]}  Kh8 {[%clk 0:01:46]} 25. f5 {[%clk 0:01:17]}  e3 {[%clk 0:01:37]} 26. Ne6 {[%clk 0:01:17]}  Qc6 {[%clk 0:01:20]} 27. Qe2 {[%clk 0:01:18]}  gxf5 {[%clk 0:00:50]} 28. Nxg7 {[%clk 0:01:17]}  Kxg7 {[%clk 0:00:50]} 29. Rf1 {[%clk 0:01:17]}  Kg6 {[%clk 0:00:48]} 30. Rf3 {[%clk 0:01:18]}  Ne4 {[%clk 0:00:36]} 31. Qxe3 {[%clk 0:01:18]}  Ng5 {[%clk 0:00:36]} 32. Bf7+ {[%clk 0:01:02]}  Nxf7 {[%clk 0:00:26]} 33. Rg3+ {[%clk 0:01:01]}  Kh5 {[%clk 0:00:26]} 34. Rh3+ {[%clk 0:00:55]}  Kg6 {[%clk 0:00:23]} 35. Rg3+ {[%clk 0:00:41]}  Kh5 {[%clk 0:00:22]} 36. Qf4 {[%clk 0:00:30]}  Qe4 {[%clk 0:00:22]} 37. Rh3+ {[%clk 0:00:12]}  Kg6 {[%clk 0:00:22]} 38. Rg3+ {[%clk 0:00:13]}  Kh5 {[%clk 0:00:23]} 39. Rh3+ {[%clk 0:00:10]}  Kg6 {[%clk 0:00:24]} 1/2-1/2

[Event "January 2 Late 2024"]
[Site "https://www.chess.com"]
[Date "2024.01.02"]
[Round "8"]
[White "Kochiev, Ivan"]
[Black "Manolache, Marius"]
[Result "0-1"]
[Board "52"]
[TimeControl "180+1"]
[WhiteFideId "2917890"]
[BlackFideId "1201530"]
[WhiteElo "2563"]
[BlackElo "2682"]
[WhiteTeam "BUL"]
[BlackTeam "ROU"]
[WhiteClock "0:02:29"]
[BlackClock "0:02:41"]

1. e4 {[%clk 0:03:00]}  c5 {[%clk 0:02:59]} 2. Nf3 {[%clk 0:03:01]}  e6 {[%clk 0:02:59]} 3. d4 {[%clk 0:03:01]}  cxd4 {[%clk 0:02:59]} 4. Nxd4 {[%clk 0:03:02]}  Nc6 {[%clk 0:03:00]} 5. Nc3 {[%clk 0:03:02]}  Qc7 {[%clk 0:03:00]} 6. f4 {[%clk 0:03:00]}  d6 {[%clk 0:02:57]} 7. Nxc6 {[%clk 0:02:56]}  bxc6 {[%clk 0:02:57]} 8. Bd3 {[%clk 0:02:56]}  a5 {[%clk 0:02:54]} 9. O-O {[%clk 0:02:54]}  Nf6 {[%clk 0:02:53]} 10. Qf3 {[%clk 0:02:43]}  Bb7 {[%clk 0:02:48]} 11. e5 {[%clk 0:02:37]}  dxe5 {[%clk 0:02:46]} 12. fxe5 {[%clk 0:02:36]}  Qxe5 {[%clk 0:02:42]} 13. Bf4 {[%clk 0:02:35]}  Qh5 {[%clk 0:02:42]} 14. Qe3 {[%clk 0:02:29]}  Bc5 {[%clk 0:02:41]} 0-1